fUST/lending_fUST_20240111
["ID","MTS","AMOUNT","RATE_DAILY","PERIOD"]
[311109770,1704910242512,-1821.85168105,0.00029039,2]
[311109771,1704910242522,-200.0,0.00029039,2]
[311109772,1704910242532,-154.97833187,0.00029039,2]
[311109773,1704910242542,-166.11653216,0.00029039,2]
[311109776,1704910242553,-183.96156831,0.00029039,20]
[311109778,1704910242563,-309.59752322,0.00029039,2]
[311109779,1704910242572,-213.35523871,0.00029039,2]
[311109781,1704910242582,-154.87609912,0.00029039,2]
[311109782,1704910242592,-163125.13938007,0.00029039,7]
[311109783,1704910242615,-7133.30844804,0.00029039,7]
[311109785,1704910242625,-2093.08732709,0.00029039,2]
[311109787,1704910242637,-500.0,0.00029041,2]
[311109788,1704910242647,-476.45374775,0.00029041,2]
[311109789,1704910242659,-23.54625225,0.00029041,2]
[311109790,1704910242668,-500.0,0.00029041,2]
[311109791,1704910242677,-500.0,0.00029041,2]
[311109792,1704910242687,-500.0,0.00029041,2]
[311109794,1704910242696,-645.94,0.00029041,2]
[311109795,1704910242706,-500.0,0.00029041,2]
[311109796,1704910242716,-1025.31,0.00029041,2]
[311109797,1704910242725,-889.05,0.00029041,2]
[311109798,1704910242734,-500.0,0.00029041,2]
[311109799,1704910242744,-500.0,0.00029041,2]
[311109800,1704910242753,-500.0,0.00029041,2]
[311109802,1704910242763,-500.0,0.00029041,2]
[311109803,1704910242772,-504.43,0.00029041,2]
[311109804,1704910242782,-500.0,0.00029041,2]
[311109805,1704910242791,-2990.23,0.00029041,2]
[311109806,1704910242801,-594.5,0.00029041,2]
[311109807,1704910242810,-500.0,0.00029041,2]
[311109808,1704910242820,-500.0,0.00029041,2]
[311109809,1704910242829,-500.0,0.00029041,2]
[311109811,1704910242839,-8876.89,0.00029041,2]
[311109812,1704910242849,-500.0,0.00029041,2]
[311109813,1704910242861,-150.8642222,0.00029212,4]
[311109814,1704910242870,-500.0,0.00029315,2]
[311109815,1704910242879,-500.0,0.00029315,2]
[311109816,1704910242889,-500.0,0.00029315,2]
[311109817,1704910242898,-500.0,0.00029315,2]
[311109818,1704910242907,-500.0,0.00029315,2]
[311109819,1704910242917,-645.94,0.00029315,2]
[311109820,1704910242927,-500.0,0.00029315,2]
[311109821,1704910242936,-1025.31,0.00029315,2]
[311109822,1704910242946,-889.05,0.00029315,2]
[311109823,1704910242956,-500.0,0.00029315,2]
[311109824,1704910242966,-500.0,0.00029315,2]
[311109825,1704910242975,-500.0,0.00029315,2]
[311109826,1704910242985,-500.0,0.00029315,2]
[311109827,1704910242994,-504.43,0.00029315,2]
[311109828,1704910243004,-500.0,0.00029315,2]
[311109829,1704910243013,-2990.23,0.00029315,2]
[311109830,1704910243023,-500.0,0.00029315,2]
[311109831,1704910243033,-500.0,0.00029315,2]
[311109832,1704910243043,-500.0,0.00029315,2]
[311109833,1704910243052,-8876.89,0.00029315,2]
[311109834,1704910243062,-500.0,0.00029315,2]
[311109835,1704910243071,-620.00040088,0.00029469,2]
[311109836,1704910243081,-4168.01043791,0.000295,3]
[311109837,1704910243091,-500.0,0.00029589,2]
[311109838,1704910243100,-500.0,0.00029589,2]
[311109839,1704910243112,-500.0,0.00029589,2]
[311109840,1704910243122,-500.0,0.00029589,2]
[311109841,1704910243131,-500.0,0.00029589,2]
[311109842,1704910243141,-645.94,0.00029589,2]
[311109843,1704910243151,-500.0,0.00029589,2]
[311109844,1704910243160,-1025.31,0.00029589,2]
[311109845,1704910243169,-889.05,0.00029589,2]
[311109846,1704910243179,-500.0,0.00029589,2]
[311109847,1704910243188,-500.0,0.00029589,2]
[311109848,1704910243197,-500.0,0.00029589,2]
[311109849,1704910243207,-500.0,0.00029589,2]
[311109850,1704910243216,-504.43,0.00029589,2]
[311109851,1704910243226,-500.0,0.00029589,2]
[311109852,1704910243236,-2990.23,0.00029589,2]
[311109853,1704910243245,-500.0,0.00029589,2]
[311109854,1704910243254,-500.0,0.00029589,2]
[311109855,1704910243264,-500.0,0.00029589,2]
[311109856,1704910243274,-8876.89,0.00029589,2]
[311109857,1704910243283,-500.0,0.00029589,2]
[311109858,1704910243292,-174.60012579,0.00029708,2]
[311109859,1704910243302,-229434.7142307,0.0002979,7]
[311109860,1704910243312,-150.8642222,0.00029809,2]
[311109861,1704910243321,-500.0,0.00029863,2]
[311109862,1704910243331,-500.0,0.00029863,2]
[311109863,1704910243341,-500.0,0.00029863,2]
[311109864,1704910243351,-500.0,0.00029863,2]
[311109865,1704910243362,-500.0,0.00029863,2]
[311109866,1704910243372,-645.94,0.00029863,2]
[311109867,1704910243382,-1025.31,0.00029863,2]
[311109868,1704910243391,-889.05,0.00029863,2]
[311109869,1704910243401,-500.0,0.00029863,2]
[311109870,1704910243410,-500.0,0.00029863,2]
[311109871,1704910243420,-500.0,0.00029863,2]
[311109872,1704910243429,-500.0,0.00029863,2]
[311109873,1704910243439,-504.43,0.00029863,2]
[311109874,1704910243448,-192.94317733,0.00029863,2]
[311109875,1704910243457,-2990.23,0.00029863,2]
[311109876,1704910243467,-500.0,0.00029863,2]
[311109877,1704910243477,-500.0,0.00029863,2]
[311109878,1704910243486,-616.76,0.00029863,2]
[311109879,1704910243496,-8876.89,0.00029863,2]
[311109880,1704910243506,-500.0,0.00029863,2]
[311109881,1704910243515,-15040.0244209,0.0003,4]
[311109882,1704910243525,-154.87609912,0.0003,2]
[311109883,1704910243534,-236.52252731,0.0003,7]
[311109884,1704910243544,-154.87609912,0.0003,2]
[311109885,1704910243554,-6973.85683356,0.0003,4]
[311109886,1704910243563,-243.77594457,0.0003,4]
[311109887,1704910243573,-639.65046808,0.0003,4]
[311109888,1704910243582,-399.65900583,0.0003,4]
[311109889,1704910243591,-463.38099934,0.0003,4]
[311109890,1704910243601,-2754.83813333,0.0003,2]
[311109891,1704910243612,-2188.52939093,0.0003,2]
[311109892,1704910243622,-22199.31688565,0.0003,3]
[311109893,1704910243632,-35003.82501296,0.0003,10]
[311109894,1704910243646,-1475.70472705,0.0003,2]
[311109895,1704910243655,-18548.99519009,0.0003,2]
[311109896,1704910243665,-698.81535711,0.0003,2]
[311109897,1704910243675,-1200.0,0.0003,4]
[311109898,1704910243685,-686.6335406,0.0003,4]
[311109899,1704910243695,-247.0,0.0003,2]
[311109900,1704910243704,-197.35265213,0.0003013,2]
[311109901,1704910243714,-500.0,0.00030136,2]
[311109902,1704910243724,-283.5,0.00030136,2]
[311109903,1704910243734,-500.0,0.00030136,2]
[311109904,1704910243743,-645.94,0.00030136,2]
[311109905,1704910243753,-150.0,0.00030136,2]
[311109906,1704910243763,-1025.31,0.00030136,2]
[311109907,1704910243772,-889.05,0.00030136,2]
[311109908,1704910243782,-500.0,0.00030136,2]
[311109909,1704910243792,-500.0,0.00030136,2]
[311109910,1704910243801,-500.0,0.00030136,2]
[311109911,1704910243811,-500.0,0.00030136,2]
[311109912,1704910243820,-504.43,0.00030136,2]
[311109913,1704910243830,-2990.23,0.00030136,2]
[311109914,1704910243840,-421.14717787,0.00030136,2]
[311109915,1704910243850,-423.41752008,0.00030136,2]
[311109916,1704910243862,-8876.89,0.00030136,2]
[311109917,1704910243872,-500.0,0.00030136,2]
[311109918,1704910243881,-5000.0,0.00030137,2]
[311109919,1704910243890,-3180.8731799,0.00030137,2]
[311109920,1704910243900,-155.0,0.0003016,2]
[311109921,1704910243909,-4600.94688996,0.000304,2]
[311109922,1704910243919,-533.41,0.0003041,2]
[311109923,1704910243928,-500.0,0.0003041,2]
[311109924,1704910243937,-645.94,0.0003041,2]
[311109925,1704910243946,-1025.31,0.0003041,2]
[311109926,1704910243955,-889.05,0.0003041,2]
[311109927,1704910243965,-500.0,0.0003041,2]
[311109928,1704910243974,-262.03,0.0003041,2]
[311109929,1704910243983,-500.0,0.0003041,2]
[311109930,1704910243993,-500.0,0.0003041,2]
[311109931,1704910244002,-504.43,0.0003041,2]
[311109932,1704910244011,-2990.23,0.0003041,2]
[311109933,1704910244022,-8876.89,0.0003041,2]
[311109934,1704910244031,-500.0,0.0003041,2]
[311109935,1704910244040,-500.0,0.00030684,2]
[311109936,1704910244049,-645.94,0.00030684,2]
[311109937,1704910244059,-1025.31,0.00030684,2]
[311109938,1704910244068,-889.05,0.00030684,2]
[311109939,1704910244078,-500.0,0.00030684,2]
[311109940,1704910244087,-500.0,0.00030684,2]
[311109941,1704910244096,-500.0,0.00030684,2]
[311109942,1704910244107,-504.43,0.00030684,2]
[311109943,1704910244116,-2990.23,0.00030684,2]
[311109944,1704910244126,-500.0,0.00030684,2]
[311109945,1704910244135,-177.53682436,0.00030887,2]
[311109946,1704910244144,-8979.75442402,0.00030887,2]
[311109947,1704910244154,-1000.0,0.00030887,7]
[311109948,1704910244164,-154.76123122,0.00030887,2]
[311109949,1704910244173,-405.20783099,0.00030887,2]
[311109950,1704910244182,-781.71762603,0.00030887,2]
[311109951,1704910244192,-500.0,0.00030958,2]
[311109952,1704910244201,-645.94,0.00030958,2]
[311109953,1704910244210,-1025.31,0.00030958,2]
[311109954,1704910244220,-889.05,0.00030958,2]
[311109955,1704910244229,-500.0,0.00030958,2]
[311109956,1704910244238,-500.0,0.00030958,2]
[311109957,1704910244248,-500.0,0.00030958,2]
[311109958,1704910244257,-504.43,0.00030958,2]
[311109959,1704910244267,-2990.23,0.00030958,2]
[311109960,1704910244276,-500.0,0.00030958,2]
[311109961,1704910244285,-496.68379172,0.00030986,4]
[311109962,1704910244294,-477.00006752,0.00030986,4]
[311109963,1704910244304,-500.0,0.00030986,2]
[311109964,1704910244313,-219.6057273,0.00030986,2]
[311109965,1704910244323,-592.28793159,0.00031,2]
[311109966,1704910244331,-59108.4914648,0.00031,4]
[311109967,1704910244341,-1000.0,0.00031,31]
[311109968,1704910244351,-500.0,0.00031232,2]
[311109969,1704910244362,-645.94,0.00031232,2]
[311109970,1704910244371,-1025.31,0.00031232,2]
[311109971,1704910244380,-889.05,0.00031232,2]
[311109972,1704910244391,-500.0,0.00031232,2]
[311109973,1704910244400,-500.0,0.00031232,2]
[311109974,1704910244408,-500.0,0.00031232,2]
[311109975,1704910244418,-504.43,0.00031232,2]
[311109976,1704910244427,-2990.23,0.00031232,2]
[311109977,1704910244438,-500.0,0.00031232,2]
[311109978,1704910244447,-1320.16673305,0.00031478,19]
[311109979,1704910244456,-500.0,0.00031506,2]
[311109980,1704910244465,-645.94,0.00031506,2]
[311109981,1704910244475,-1025.31,0.00031506,2]
[311109982,1704910244484,-889.05,0.00031506,2]
[311109983,1704910244493,-500.0,0.00031506,2]
[311109984,1704910244502,-500.0,0.00031506,2]
[311109985,1704910244511,-500.0,0.00031506,2]
[311109986,1704910244522,-504.43,0.00031506,2]
[311109987,1704910244532,-2990.23,0.00031506,2]
[311109988,1704910244541,-500.0,0.00031506,2]
[311109989,1704910244551,-254.00672133,0.0003153,2]
[311109990,1704910244560,-50000.0,0.00031537,7]
[311109991,1704910244570,-306.8172151,0.00031675,2]
[311109992,1704910244580,-5000.0,0.00031753,7]
[311109993,1704910244589,-5000.0,0.00031753,7]
[311109994,1704910244598,-5000.0,0.00031772,7]
[311109995,1704910244609,-500.0,0.0003178,2]
[311109996,1704910244619,-645.94,0.0003178,2]
[311109997,1704910244628,-1025.31,0.0003178,2]
[311109998,1704910244640,-889.05,0.0003178,2]
[311109999,1704910244649,-500.0,0.0003178,2]
[311110000,1704910244659,-500.0,0.0003178,2]
[311110002,1704910244669,-500.0,0.0003178,2]
[311110004,1704910244678,-504.43,0.0003178,2]
[311110006,1704910244688,-2990.23,0.0003178,2]
[311110008,1704910244697,-500.0,0.0003178,2]
[311110010,1704910244707,-12429.70172272,0.000318,2]
[311110012,1704910244717,-2134.03260025,0.00032,4]
[311110014,1704910244727,-3342.64274471,0.00032,10]
[311110016,1704910244737,-12808.92421854,0.00032,15]
[311110022,1704910245034,-476.56281291,0.00023288,2]
[311110023,1704910245044,-500.0,0.00027397,2]
[311110024,1704910245053,-500.0,0.0002767,4]
[311110025,1704910245063,-500.0,0.0002767,4]
[311110026,1704910245072,-208.43631734,0.0002767,4]
[311110027,1704910245082,-516.9257735,0.0002767,4]
[311110028,1704910245092,-500.0,0.00027671,2]
[311110029,1704910245101,-500.0,0.00027945,2]
[311110030,1704910245112,-500.0,0.00028219,2]
[311110031,1704910245121,-460.07509625,0.00028493,2]
[311110034,1704910245206,-39.92490375,0.00028493,2]
[311110035,1704910245216,-500.0,0.00028767,2]
[311110036,1704910245225,-325.20638504,0.00029041,2]
[311110037,1704910245238,-174.79361496,0.00029041,2]
[311110038,1704910245248,-186.99200764,0.00029315,2]
[311110068,1704910245936,-22028.1239221,0.00027074,2]
[311110069,1704910245945,-500.0,0.00027397,2]
[311110070,1704910245955,-201.6,0.0002767,4]
[311110071,1704910245965,-500.0,0.00027671,2]
[311110072,1704910245975,-500.0,0.00027945,2]
[311110073,1704910245984,-313.00799236,0.00029315,2]
[311110074,1704910245993,-500.0,0.00029589,2]
[311110075,1704910246002,-500.0,0.00029863,2]
[311110076,1704910246012,-500.0,0.00030136,2]
[311110077,1704910246021,-500.0,0.0003041,2]
[311110078,1704910246030,-500.0,0.00030684,2]
[311110079,1704910246039,-649.3962231,0.00030887,2]
[311110080,1704910246049,-500.0,0.00030958,2]
[311110081,1704910246058,-500.0,0.00031232,2]
[311110082,1704910246068,-500.0,0.00031506,2]
[311110083,1704910246077,-7863.22266165,0.00031743,3]
[311110092,1704910476065,-154.8915759,0.00014832,2]
[311110093,1704910476086,-3828.6633715,0.00014833,2]
[311110094,1704910476107,-388.4450526,0.00014833,2]
[311110095,1704910493150,166.47402903,8.21e-05,2]
[311110096,1704910528496,154.8915759,8.21e-05,2]
[311110097,1704910544501,154.8915759,8.21e-05,2]
[311110098,1704910547158,-154.8915759,0.00014826,2]
[311110099,1704910547179,-466.69842907,0.00014827,2]
[311110100,1704910547200,-2927.32783457,0.00014828,2]
[311110101,1704910547221,-1290.98227304,0.00014829,2]
[311110102,1704910547244,-285.7548216,0.0001483,2]
[311110103,1704910547267,-154.8915759,0.00014831,2]
[311110104,1704910547288,-230.48582873,0.00014832,2]
[311110105,1704910547308,-28.96766119,0.00014832,2]
[311110109,1704910566506,203.55703818,8.21e-05,2]
[311110110,1704910572589,233.11,0.0003,30]
[311110111,1704910573264,154.87609912,8.21e-05,2]
[311110114,1704910615483,-918.0,0.00014824,2]
[311110119,1704910686980,-154.86062544,0.0001482,2]
[311110120,1704910687001,-154.86062544,0.00014821,2]
[311110121,1704910687022,-520.97192037,0.00014822,2]
[311110122,1704910687043,-451.74832768,0.00014822,2]
[311110123,1704910687064,-154.87609912,0.00014824,2]
[311110124,1704910687085,-1890.94906759,0.00014824,2]
[311110125,1704910687106,-257.92964888,0.00014832,2]
[311110126,1704910687126,-125.92391471,0.00014832,2]
[311110127,1704910687146,-19828.39990193,0.00014832,2]
[311110128,1704910687167,-68.3026464,0.00014833,2]
[311110129,1704910687188,-16144.17722244,0.00014833,2]
[311110130,1704910754453,150.84915085,0.00027351,30]
[311110146,1704911014937,-253.55669293,0.00014807,2]
[311110147,1704911014962,-154.86062544,0.00014807,2]
[311110148,1704911014983,-154.86062544,0.00014807,2]
[311110149,1704911015005,-285.7548216,0.00014808,2]
[311110150,1704911015024,-242.59429943,0.00014809,2]
[311110151,1704911015045,-3313.37293516,0.00014818,2]
[311110165,1704911205373,-154.93802479,0.00014784,2]
[311110172,1704911320891,-466.69842907,0.00014709,2]
[311110173,1704911320923,-154.84515485,0.0001471,2]
[311110174,1704911320955,-154.86062544,0.00014781,2]
[311110175,1704911320987,-12044.59579064,0.00014784,2]
[311110176,1704911351131,-7987.09073251,0.00014783,2]
[311110177,1704911351151,-19828.39990193,0.00014786,2]
[311110178,1704911351172,-4300.8342515,0.00014787,2]
[311110179,1704911351192,-1645.25952024,0.00014823,2]
[311110182,1704911374127,-228.373849,0.00013805,2]
[311110183,1704911374148,-785.89054615,0.00014823,2]
[311110184,1704911374167,-309.55113308,0.00014824,2]
[311110185,1704911374188,-217.386201,0.00015142,2]
[311110186,1704911374208,-677.27393931,0.00015536,2]
[311110187,1704911374231,-154.86062544,0.00015616,2]
[311110188,1704911374252,-200.0,0.00016264,2]
[311110189,1704911374272,-964.55150019,0.00016499,2]
[311110190,1704911374292,-964.55150019,0.00016499,2]
[311110191,1704911374312,-964.55150019,0.00016499,2]
[311110192,1704911374332,-271.96235488,0.00017178,2]
[311110193,1704911374351,-458.75406967,0.00017179,2]
[311110194,1704911374371,-10002.14356912,0.0001718,2]
[311110195,1704911374390,-232.14758398,0.00017351,2]
[311110196,1704911374409,-301.40102599,0.00017351,2]
[311110197,1704911374428,-369.57346955,0.00017351,2]
[311110198,1704911374448,-253.07044946,0.00017351,2]
[311110199,1704911374467,-377.46790912,0.00017351,2]
[311110200,1704911374486,-307.95305764,0.00017352,2]
[311110201,1704911374506,-3781.28285928,0.00017352,2]
[311110203,1704911395533,500.0,0.0003,30]
[311110204,1704911417945,500.0,0.0003,30]
[311110214,1704911431611,585.21541874,0.0003,30]
[311110264,1704911432033,-0.57009309,0.00015616,2]
[311110385,1704911438251,-154.29053235,0.00015616,2]
[311110387,1704911438261,-415.16979059,0.00017351,2]
[311110389,1704911438271,-1899.5415117,0.00017352,2]
[311110391,1704911438285,-1890.17051321,0.00017352,2]
[311110395,1704911438310,-12257.40501774,0.00017352,2]
[311110397,1704911438319,-3953.17188123,0.00017352,2]
[311110399,1704911438329,-1574.6122842,0.00017353,2]
[311110401,1704911438338,-176.44509333,0.00017353,2]
[311110403,1704911438347,-165.70894112,0.00017353,2]
[311110405,1704911438359,-160.92803022,0.00017353,2]
[311110407,1704911438369,-1545.05101549,0.00017353,2]
[311110409,1704911438378,-256.21241228,0.00017353,2]
[311110411,1704911438387,-206.15331781,0.00017353,2]
[311110413,1704911438396,-266.27745965,0.00017353,2]
[311110415,1704911438406,-155.07733581,0.00017353,2]
[311110417,1704911438416,-174.54706619,0.00017353,2]
[311110419,1704911438425,-309.65937468,0.00017353,2]
[311110421,1704911438434,-284.97198612,0.00017353,2]
[311110423,1704911438444,-947.43868379,0.00017353,2]
[311110425,1704911438453,-2012.04779527,0.00017353,2]
[311110426,1704911438462,-312.91539313,0.00017353,2]
[311110428,1704911438471,-203.65046601,0.00017353,2]
[311110430,1704911438480,-1053.31742641,0.00017353,2]
[311110432,1704911438489,-158.88674615,0.00017353,2]
[311110434,1704911438499,-860.62181226,0.00017353,2]
[311110436,1704911438508,-155.08995217,0.00017353,2]
[311110438,1704911438517,-360.64707367,0.00017353,2]
[311110440,1704911438526,-154.86062544,0.00017353,2]
[311110442,1704911438535,-154.87609912,0.00017353,2]
[311110444,1704911438544,-154.87604972,0.00017353,2]
[311110446,1704911438553,-243.34386839,0.00017353,2]
[311110448,1704911438562,-541.74757718,0.00017353,2]
[311110450,1704911438571,-20828.12716016,0.00017353,2]
[311110451,1704911438580,-308.57024816,0.00017353,2]
[311110454,1704911438590,-539.21522124,0.00017353,2]
[311110455,1704911438599,-7941.85502117,0.00017353,2]
[311110457,1704911438609,-304.65551292,0.00017353,2]
[311110459,1704911438618,-3402.08028876,0.00017354,2]
[311110461,1704911438628,-1235.04940633,0.00017354,2]
[311110463,1704911438637,-237.67865572,0.00017355,2]
[311110465,1704911438647,-174.73357117,0.00017355,2]
[311110467,1704911438656,-156.60603131,0.00017355,2]
[311110469,1704911438665,-197.15151199,0.00017355,2]
[311110470,1704911438674,-155.09293406,0.00017355,2]
[311110472,1704911438684,-155.04445476,0.00017355,2]
[311110474,1704911438694,-3082.80366341,0.00017355,2]
[311110475,1704911438703,-185.54327278,0.00017355,2]
[311110476,1704911438712,-20845.41719757,0.00017355,2]
[311110477,1704911438721,-1172.14414578,0.00017355,2]
[311110478,1704911438730,-1215.61987979,0.00017355,2]
[311110479,1704911438739,-399.84612211,0.00017355,2]
[311110480,1704911438749,-298.073383,0.00017355,2]
[311110481,1704911438758,-155.93147082,0.00017355,2]
[311110482,1704911438767,-469.64064105,0.00017356,2]
[311110483,1704911438776,-1736.22791951,0.00017356,2]
[311110484,1704911438786,-198.74018768,0.00017357,2]
[311110485,1704911438795,-2069.1542188,0.00017357,2]
[311110486,1704911438804,-156.03695459,0.00017357,2]
[311110487,1704911438814,-2707.3394266,0.00017357,2]
[311110488,1704911438824,-15341.05666022,0.00017357,2]
[311110489,1704911438834,-2047.56102621,0.00017357,2]
[311110490,1704911438844,-155.31365558,0.00017357,2]
[311110491,1704911438854,-2070.35788054,0.00017358,2]
[311110492,1704911438863,-254.23166766,0.000178,2]
[311110493,1704911438872,-280.0,0.0001789,2]
[311110494,1704911438881,-10500.0358078,0.00017898,2]
[311110495,1704911438890,-157.967098,0.00019178,2]
[311110496,1704911438898,-268.31477389,0.000195,2]
[311110497,1704911438907,-375.57845249,0.000199,2]
[311110498,1704911438917,-216504.77109623,0.000199,2]
[311110499,1704911438926,-293.90700249,0.00019998,2]
[311110500,1704911438935,-270734.30120863,0.0002,2]
[311110501,1704911438944,-266.19065175,0.0002,2]
[311110502,1704911438953,-314.83802807,0.0002,2]
[311110503,1704911438962,-960.55070757,0.0002,2]
[311110504,1704911438971,-676.96253794,0.0002,2]
[311110505,1704911438982,-154.87609912,0.0002,2]
[311110506,1704911438991,-1195.09669838,0.0002,2]
[311110507,1704911439002,-228.373849,0.00020707,2]
[311110508,1704911439012,-166.666666,0.00021918,2]
[311110509,1704911439021,-656.73412102,0.00022,2]
[311110510,1704911439031,-156.86767994,0.00022,2]
[311110511,1704911439040,-375.57845248,0.00022092,2]
[311110512,1704911439051,-166.666666,0.00022431,2]
[311110513,1704911439060,-154.87609912,0.000225,2]
[311110514,1704911439069,-166.666666,0.00022944,2]
[311110515,1704911439078,-2118.74401571,0.00023,2]
[311110516,1704911439089,-2092.18468192,0.00023,2]
[311110517,1704911439098,-477.00006752,0.00023288,4]
[311110518,1704911439108,-496.68379172,0.00023288,4]
[311110519,1704911439117,-221.53961722,0.00023288,4]
[311110520,1704911439126,-500.0,0.00023288,2]
[311110521,1704911439135,-456.10977466,0.00023288,2]
[311110522,1704911439144,-334.20591977,0.00023288,2]
[311110523,1704911439153,-500.0,0.00023288,2]
[311110524,1704911439162,-500.0,0.00023288,2]
[311110525,1704911439173,-465.47164601,0.00023288,2]
[311110526,1704911439183,-500.0,0.00023288,2]
[311110527,1704911439192,-500.0,0.00023288,2]
[311110528,1704911439202,-500.0,0.00023288,2]
[311110529,1704911439211,-249.33368846,0.00023288,2]
[311110530,1704911439220,-500.0,0.00023288,2]
[311110531,1704911439229,-380.41238797,0.00023288,2]
[311110532,1704911439237,-500.0,0.00023288,2]
[311110533,1704911439247,-500.0,0.00023288,2]
[311110534,1704911439256,-500.0,0.00023288,2]
[311110535,1704911439265,-500.0,0.00023288,2]
[311110536,1704911439274,-166.666666,0.00023456,2]
[311110537,1704911439283,-166.666666,0.00023969,2]
[311110538,1704911439293,-2293.16748545,0.00024,2]
[311110539,1704911439303,-375.57845248,0.00024284,2]
[311110540,1704911439314,-166.666666,0.00024482,2]
[311110541,1704911439323,-497.00944952,0.0002498,5]
[311110542,1704911439332,-4711.08145103,0.00025,2]
[311110543,1704911439343,-243.6662938,0.00025,2]
[311110544,1704911439354,-525.91402641,0.00026,2]
[311110545,1704911439362,-375.57845248,0.00026475,2]
[311110546,1704911439371,-620.07992809,0.0002673,2]
[311110547,1704911439381,-3313.2630203,0.00027351,2]
[311110548,1704911439390,-200.0,0.00027351,2]
[311110550,1704911439399,-300.0,0.00027351,2]
[311110551,1704911439408,-1821.85168105,0.00027351,2]
[311110553,1704911439418,-763.40324942,0.00027351,2]
[311110554,1704911439427,-2079.63666476,0.00027351,2]
[311110555,1704911439436,-500.0,0.00027397,2]
[311110556,1704911439445,-500.0,0.00027397,2]
[311110557,1704911439454,-500.0,0.00027397,2]
[311110558,1704911439465,-500.0,0.00027397,2]
[311110559,1704911439474,-188.56233448,0.00027397,2]
[311110560,1704911439484,-500.0,0.00027397,2]
[311110561,1704911439493,-500.0,0.00027397,2]
[311110562,1704911439502,-500.0,0.00027397,2]
[311110563,1704911439513,-500.0,0.00027397,2]
[311110564,1704911439523,-500.0,0.00027397,2]
[311110565,1704911439532,-591.65839959,0.00027397,2]
[311110566,1704911439541,-500.0,0.00027397,2]
[311110567,1704911439550,-500.0,0.00027397,2]
[311110568,1704911439559,-500.0,0.00027397,2]
[311110569,1704911439569,-500.0,0.00027397,2]
[311110570,1704911439578,-500.0,0.00027397,2]
[311110571,1704911439587,-200.0,0.00027397,2]
[311110572,1704911439596,-500.0,0.00027397,2]
[311110573,1704911439607,-500.0,0.00027397,2]
[311110574,1704911439618,-500.0,0.00027397,2]
[311110575,1704911439627,-500.0,0.00027397,2]
[311110576,1704911439636,-526.24216338,0.00027397,2]
[311110577,1704911439645,-500.0,0.00027397,2]
[311110578,1704911439654,-500.0,0.00027397,2]
[311110579,1704911439664,-500.0,0.00027397,2]
[311110580,1704911439673,-500.0,0.00027397,2]
[311110581,1704911439683,-500.0,0.00027397,2]
[311110582,1704911439692,-500.0,0.00027397,2]
[311110583,1704911439701,-1000.0,0.00027397,2]
[311110584,1704911439710,-344.1617369,0.00027397,2]
[311110585,1704911439720,-500.0,0.00027397,2]
[311110586,1704911439729,-500.0,0.00027397,2]
[311110587,1704911439738,-500.0,0.00027397,2]
[311110588,1704911439747,-500.0,0.00027397,2]
[311110589,1704911439757,-500.0,0.00027397,2]
[311110590,1704911439766,-500.0,0.00027397,2]
[311110591,1704911439775,-500.0,0.00027397,2]
[311110592,1704911439784,-500.0,0.00027397,2]
[311110593,1704911439793,-547.36654696,0.00027397,2]
[311110594,1704911439803,-500.0,0.00027397,2]
[311110595,1704911439814,-501.78053641,0.00027397,2]
[311110596,1704911439823,-500.0,0.00027397,2]
[311110597,1704911439832,-500.0,0.00027397,2]
[311110598,1704911439842,-185.024086,0.00027397,2]
[311110599,1704911439850,-500.0,0.00027397,2]
[311110600,1704911439860,-500.0,0.00027397,2]